fUSD/lending_fUSD_20260201
["ID","MTS","AMOUNT","RATE_DAILY","PERIOD"]
[404212230,1769968238171,-500.0,0.00014927,2]
[404212231,1769968238180,-501.62713583,0.00014927,2]
[404212232,1769968238189,-500.0,0.00014927,2]
[404212233,1769968238199,-500.0,0.00014927,2]
[404212234,1769968238208,-500.0,0.00014927,2]
[404212235,1769968238218,-500.0,0.00014927,2]
[404212236,1769968238227,-500.0,0.00014927,2]
[404212237,1769968238237,-500.0,0.00014927,2]
[404212238,1769968238246,-500.0,0.00014927,2]
[404212239,1769968238255,-500.0,0.00014927,2]
[404212240,1769968238265,-500.0,0.00014927,2]
[404212241,1769968238275,-500.0,0.00014927,2]
[404212242,1769968238284,-500.0,0.00014927,2]
[404212243,1769968238293,-500.0,0.00014927,2]
[404212244,1769968238303,-500.0,0.00014927,2]
[404212245,1769968238313,-500.0,0.00014927,2]
[404212246,1769968238323,-500.0,0.00014927,2]
[404212247,1769968238332,-500.0,0.00014927,2]
[404212248,1769968238341,-440.45664662,0.00014927,2]
[404212249,1769968238350,-500.0,0.00014927,2]
[404212250,1769968238359,-500.0,0.00014927,2]
[404212251,1769968238369,-500.0,0.00014927,2]
[404212252,1769968238380,-500.0,0.00014927,2]
[404212253,1769968238390,-378.62026644,0.00014927,2]
[404212254,1769968238400,-500.0,0.00014927,2]
[404212255,1769968238410,-500.0,0.00014927,2]
[404212256,1769968238420,-500.0,0.00014927,2]
[404212257,1769968238433,-458.52978593,0.00014927,2]
[404212258,1769968238442,-500.0,0.00014927,2]
[404212259,1769968238452,-500.0,0.00014927,2]
[404212260,1769968238461,-217.11673659,0.00014927,2]
[404212261,1769968238472,-500.0,0.00014927,2]
[404212262,1769968238484,-500.0,0.00014927,2]
[404212263,1769968238493,-500.0,0.00014927,2]
[404212264,1769968238504,-500.0,0.00014927,2]
[404212265,1769968238514,-361.7279594,0.00014927,2]
[404212266,1769968238523,-436.83975301,0.00014927,2]
[404212267,1769968238533,-500.0,0.00014927,2]
[404212268,1769968238542,-203.30202647,0.00014927,2]
[404212269,1769968238551,-167.6921,0.00014928,2]
[404212270,1769968238561,-2760.74,0.0001494,2]
[404212271,1769968238570,-2760.74,0.00014979,2]
[404212272,1769968238580,-2760.74,0.00015018,2]
[404212273,1769968238590,-1000.0,0.00015028,2]
[404212274,1769968238599,-2760.74,0.00015056,2]
[404212275,1769968238609,-11570.28262785,0.00015057,2]
[404212276,1769968238618,-2760.74,0.00015095,2]
[404212277,1769968238628,-166.66,0.00015096,2]
[404212278,1769968238638,-2760.74,0.00015134,2]
[404212279,1769968238648,-2760.74,0.00015173,2]
[404212280,1769968238657,-500.0,0.00015201,2]
[404212281,1769968238667,-219.0,0.00015203,2]
[404212282,1769968238676,-2760.74,0.00015212,2]
[404212283,1769968238685,-500.0,0.00015226,2]
[404212284,1769968238694,-500.0,0.00015226,2]
[404212285,1769968238704,-500.0,0.00015227,2]
[404212286,1769968238713,-500.0,0.00015227,2]
[404212287,1769968238722,-500.0,0.00015227,2]
[404212288,1769968238732,-500.0,0.00015227,2]
[404212289,1769968238741,-500.0,0.00015227,2]
[404212290,1769968238755,-500.0,0.00015227,2]
[404212291,1769968238764,-500.0,0.00015227,2]
[404212292,1769968238773,-500.0,0.00015227,2]
[404212293,1769968238782,-500.0,0.00015227,2]
[404212295,1769968238792,-500.0,0.00015227,2]
[404212297,1769968238801,-500.0,0.00015227,2]
[404212299,1769968238810,-500.0,0.00015227,2]
[404212300,1769968238819,-513.17443347,0.00015227,2]
[404212302,1769968238828,-500.0,0.00015247,2]
[404212304,1769968238837,-2760.74,0.0001525,2]
[404212306,1769968238847,-2760.74,0.00015289,2]
[404212308,1769968238857,-359.64364585,0.00015316,2]
[404212309,1769968238865,-195.0,0.00015316,2]
[404212311,1769968238876,-2760.74,0.00015328,2]
[404212313,1769968238886,-2760.74,0.00015367,2]
[404212315,1769968238895,-166.66,0.00015389,2]
[404212316,1769968238904,-187.35,0.00015389,2]
[404212318,1769968238914,-1586.01,0.00015403,2]
[404212319,1769968238925,-2760.74,0.00015406,2]
[404212320,1769968238935,-11570.28262785,0.00015413,2]
[404212321,1769968238944,-347.57801565,0.00015416,2]
[404212322,1769968238953,-500.0,0.00015427,2]
[404212323,1769968238962,-500.0,0.00015427,2]
[404212324,1769968238972,-500.0,0.00015427,2]
[404212325,1769968238981,-500.0,0.00015427,2]
[404212326,1769968238990,-500.0,0.00015427,2]
[404212327,1769968239000,-500.0,0.00015427,2]
[404212328,1769968239009,-500.0,0.00015427,2]
[404212329,1769968239019,-500.0,0.00015427,2]
[404212330,1769968239028,-500.0,0.00015427,2]
[404212331,1769968239037,-500.0,0.00015427,2]
[404212332,1769968239046,-500.0,0.00015427,2]
[404212333,1769968239056,-500.0,0.00015427,2]
[404212334,1769968239065,-500.0,0.00015427,2]
[404212335,1769968239074,-500.0,0.00015427,2]
[404212336,1769968239084,-500.0,0.00015427,2]
[404212337,1769968239093,-500.0,0.00015427,2]
[404212338,1769968239102,-500.0,0.00015427,2]
[404212339,1769968239112,-500.0,0.00015427,2]
[404212340,1769968239123,-500.0,0.00015427,2]
[404212341,1769968239132,-500.0,0.00015427,2]
[404212342,1769968239142,-500.0,0.00015427,2]
[404212343,1769968239151,-500.0,0.00015427,2]
[404212344,1769968239160,-500.0,0.00015427,2]
[404212345,1769968239169,-500.0,0.00015427,2]
[404212346,1769968239178,-500.0,0.00015427,2]
[404212347,1769968239187,-312.31641165,0.00015427,2]
[404212348,1769968239197,-500.0,0.00015427,2]
[404212349,1769968239206,-500.0,0.00015427,2]
[404212350,1769968239216,-500.0,0.00015427,2]
[404212351,1769968239227,-500.0,0.00015427,2]
[404212352,1769968239235,-500.0,0.00015427,2]
[404212353,1769968239254,-500.0,0.00015427,2]
[404212354,1769968239264,-500.0,0.00015427,2]
[404212355,1769968239273,-504.93950976,0.00015427,2]
[404212356,1769968239284,-502.22529464,0.00015427,2]
[404212357,1769968239294,-500.0,0.00015427,2]
[404212358,1769968239304,-500.0,0.00015427,2]
[404212359,1769968239314,-500.0,0.00015427,2]
[404212361,1769968239325,-500.0,0.00015427,2]
[404212362,1769968239334,-500.0,0.00015427,2]
[404212363,1769968239344,-500.0,0.00015427,2]
[404212364,1769968239354,-291.68014274,0.00015427,2]
[404212365,1769968239366,-500.0,0.00015427,2]
[404212366,1769968239375,-500.0,0.00015427,2]
[404212367,1769968239384,-500.0,0.00015427,2]
[404212368,1769968239393,-500.0,0.00015427,2]
[404212369,1769968239402,-500.0,0.00015427,2]
[404212371,1769968239411,-500.0,0.00015427,2]
[404212372,1769968239424,-500.0,0.00015427,2]
[404212373,1769968239435,-500.0,0.00015427,2]
[404212374,1769968239445,-500.0,0.00015427,2]
[404212375,1769968239456,-500.0,0.00015427,2]
[404212376,1769968239466,-500.0,0.00015427,2]
[404212377,1769968239476,-419.33766929,0.00015427,2]
[404212378,1769968239486,-2760.74,0.00015444,2]
[404212379,1769968239497,-200.0,0.00015467,2]
[404212380,1769968239507,-500.0,0.00015467,2]
[404212381,1769968239517,-500.0,0.00015475,2]
[404212382,1769968239529,-2760.74,0.00015483,2]
[404212383,1769968239539,-1722.44010177,0.00015503,2]
[404212384,1769968239551,-1153.93461934,0.00015503,2]
[404212385,1769968239562,-3286.1281269,0.00015503,2]
[404212386,1769968239571,-6403.21720259,0.00015503,2]
[404212387,1769968239581,-525.19,0.00015613,2]
[404212388,1769968239592,-643.34665799,0.00015664,2]
[404212389,1769968239601,-1112.55813726,0.00015727,2]
[404212390,1769968239614,-500.0,0.00015749,2]
[404212391,1769968239625,-11570.28262785,0.00015768,2]
[404212392,1769968239635,-191.35,0.00015845,2]
[404212393,1769968239644,-248.0,0.00015846,2]
[404212394,1769968239654,-150.01225372,0.00015859,2]
[404212395,1769968239664,-347.57801565,0.00015913,2]
[404212396,1769968239674,-200.0,0.00016015,2]
[404212397,1769968239683,-500.0,0.00016015,2]
[404212398,1769968239693,-199.66,0.0001602,2]
[404212399,1769968239702,-500.0,0.00016023,2]
[404212400,1769968239712,-1000.0,0.00016087,2]
[404212401,1769968239723,-420.0,0.00016094,2]
[404212402,1769968239734,-11570.28262785,0.00016123,2]
[404212403,1769968239743,-1680.0,0.00016171,2]
[404212404,1769968239752,-151.0,0.00016249,2]
[404212405,1769968239763,-500.0,0.00016297,2]
[404212406,1769968239773,-2834.0,0.000164,2]
[404212407,1769968239783,-157.67,0.00016404,2]
[404212408,1769968239794,-643.34665799,0.0001641,2]
[404212409,1769968239803,-347.57801565,0.0001641,2]
[404212410,1769968239815,-377.75945699,0.00016438,2]
[404212411,1769968239825,-500.0,0.00016438,2]
[404212412,1769968239834,-500.0,0.00016438,2]
[404212413,1769968239844,-500.0,0.00016438,2]
[404212414,1769968239854,-500.0,0.00016438,2]
[404212415,1769968239863,-500.0,0.00016438,2]
[404212416,1769968239873,-500.0,0.00016438,2]
[404212417,1769968239883,-500.0,0.00016438,2]
[404212418,1769968239892,-500.0,0.00016438,2]
[404212419,1769968239902,-500.0,0.00016438,2]
[404212420,1769968239911,-500.0,0.00016438,2]
[404212421,1769968239920,-500.0,0.00016438,2]
[404212422,1769968239929,-500.0,0.00016438,2]
[404212423,1769968239939,-500.0,0.00016438,2]
[404212424,1769968239948,-500.0,0.00016438,2]
[404212425,1769968239957,-500.0,0.00016438,2]
[404212426,1769968239967,-500.0,0.00016438,2]
[404212427,1769968239976,-500.0,0.00016438,2]
[404212428,1769968239986,-500.0,0.00016438,2]
[404212429,1769968239996,-500.0,0.00016438,2]
[404212430,1769968240009,-500.0,0.00016438,2]
[404212431,1769968240018,-500.0,0.00016438,2]
[404212432,1769968240028,-500.0,0.00016438,2]
[404212433,1769968240037,-396.89494562,0.00016438,2]
[404212434,1769968240047,-500.0,0.00016438,2]
[404212435,1769968240057,-500.0,0.00016438,2]
[404212436,1769968240066,-500.0,0.00016438,2]
[404212437,1769968240076,-500.0,0.00016438,2]
[404212438,1769968240086,-500.0,0.00016438,2]
[404212439,1769968240096,-500.0,0.00016438,2]
[404212440,1769968240105,-500.0,0.00016438,2]
[404212441,1769968240115,-500.0,0.00016438,2]
[404212442,1769968240125,-500.0,0.00016438,2]
[404212443,1769968240135,-500.0,0.00016438,2]
[404212444,1769968240145,-500.0,0.00016438,2]
[404212445,1769968240166,-500.0,0.00016438,2]
[404212446,1769968240178,-500.0,0.00016438,2]
[404212447,1769968240193,-500.0,0.00016438,2]
[404212448,1769968240211,-500.0,0.00016438,2]
[404212449,1769968240225,-500.0,0.00016438,2]
[404212450,1769968240237,-500.0,0.00016438,2]
[404212451,1769968240248,-500.0,0.00016438,2]
[404212452,1769968240259,-500.0,0.00016438,2]
[404212453,1769968240272,-500.0,0.00016438,2]
[404212454,1769968240284,-500.0,0.00016438,2]
[404212455,1769968240297,-500.0,0.00016438,2]
[404212456,1769968240308,-500.0,0.00016438,2]
[404212457,1769968240320,-500.0,0.00016438,2]
[404212458,1769968240332,-500.0,0.00016438,2]
[404212459,1769968240346,-500.0,0.00016438,2]
[404212460,1769968240359,-500.0,0.00016438,2]
[404212461,1769968240372,-500.0,0.00016438,2]
[404212462,1769968240387,-500.0,0.00016438,2]
[404212463,1769968240400,-539.68949456,0.00016438,2]
[404212464,1769968240411,-500.0,0.00016438,2]
[404212465,1769968240423,-500.0,0.00016438,2]
[404212466,1769968240437,-11570.28262785,0.00016479,2]
[404212467,1769968240449,-1701.0,0.00016535,2]
[404212468,1769968240463,-200.0,0.00016563,2]
[404212469,1769968240476,-500.0,0.00016563,2]
[404212470,1769968240488,-212.12976534,0.00016563,2]
[404212471,1769968240501,-500.0,0.00016571,2]
[404212472,1769968240513,-10076.80540011,0.00016697,2]
[404212473,1769968240525,-4523.78,0.00016718,2]
[404212474,1769968240539,-159.11024008,0.00016777,2]
[404212475,1769968240552,-11570.28262785,0.00016834,2]
[404212476,1769968240564,-500.0,0.00016845,2]
[404212477,1769968240578,-347.57801565,0.00016906,2]
[404212478,1769968240590,-150.99,0.00016922,2]
[404212479,1769968240602,-299.99,0.00016922,4]
[404212480,1769968240616,-150.99,0.00016922,2]
[404212481,1769968240629,-1000.0,0.00016986,2]
[404212482,1769968240642,-150.01225372,0.00017017,2]
[404212483,1769968240654,-1455.0,0.00017018,2]
[404212484,1769968240667,-2834.0,0.0001704,2]
[404212485,1769968240680,-200.0,0.00017111,2]
[404212486,1769968240691,-500.0,0.00017111,2]
[404212487,1769968240703,-1701.0,0.00017122,2]
[404212488,1769968240715,-1701.0,0.00017129,2]
[404212489,1769968240728,-643.34665799,0.00017155,2]
[404212490,1769968240740,-168.0,0.00017177,2]
[404212491,1769968240757,-11570.28262785,0.00017189,2]
[404212492,1769968240772,-212.12976534,0.00017232,2]
[404212493,1769968240786,-168.0,0.00017255,2]
[404212494,1769968240799,-1000.0,0.0001726,2]
[404212495,1769968240814,-1455.0,0.0001728,2]
[404212496,1769968240826,-1455.0,0.0001731,2]
[404212497,1769968240837,-347.57801565,0.00017403,2]
[404212498,1769968240848,-168.0,0.00017423,2]
[404212499,1769968240860,-168.0,0.00017423,2]
[404212500,1769968240872,-168.0,0.00017434,2]
[404212501,1769968240885,-1455.0,0.00017466,2]
[404212502,1769968240899,-1999.0,0.00017534,2]
[404212503,1769968240914,-11570.28262785,0.00017545,2]
[404212504,1769968240924,-6855.0,0.00017598,2]
[404212505,1769968240935,-587.0,0.0001762,2]
[404212506,1769968240946,-200.0,0.00017659,2]
[404212507,1769968240957,-500.0,0.00017659,2]
[404212508,1769968240968,-726.399,0.00017673,2]
[404212509,1769968240980,-1334.0,0.00017673,2]
[404212510,1769968240992,-3496.695,0.00017673,2]
[404212511,1769968241005,-1410.0,0.00017673,2]
[404212512,1769968241017,-174.174,0.00017673,2]
[404212513,1769968241028,-1273.033,0.00017673,2]
[404212514,1769968241038,-927.314,0.00017673,2]
[404212515,1769968241050,-1208.946,0.00017673,2]
[404212516,1769968241060,-6577.0,0.00017673,2]
[404212517,1769968241071,-3252.0,0.00017673,2]
[404212518,1769968241082,-567.0,0.00017673,2]
[404212519,1769968241093,-2263.0,0.0001768,2]
[404212520,1769968241104,-1455.0,0.0001774,2]
[404212521,1769968241115,-18954.28759851,0.00017768,3]
[404212522,1769968241380,-14377.87408203,0.00014702,2]
[404212523,1769968241391,-6045.71240149,0.00017768,3]
[404212524,1769968241402,-25000.0,0.00017777,3]
[404212525,1769968241414,-25000.0,0.00017786,3]
[404212526,1769968241428,-2351.0,0.00017788,2]
[404212527,1769968241440,-25000.0,0.00017794,3]
[404212528,1769968241452,-25000.0,0.00017803,3]
[404212529,1769968241462,-1000.0,0.00017808,2]
[404212530,1769968241473,-25000.0,0.00017812,3]
[404212531,1769968241485,-25000.0,0.00017821,3]
[404212532,1769968241497,-168.0,0.00017822,2]
[404212533,1769968241509,-25000.0,0.0001783,3]
[404212534,1769968241519,-25000.0,0.00017838,3]
[404212535,1769968241532,-25000.0,0.00017847,3]
[404212536,1769968241542,-1455.0,0.00017853,2]
[404212537,1769968241554,-25000.0,0.00017856,3]
[404212538,1769968241565,-25000.0,0.00017865,3]
[404212539,1769968241576,-25000.0,0.00017874,3]
[404212540,1769968241589,-1000.0,0.00017874,2]
[404212541,1769968241601,-25000.0,0.00017882,3]
[404212542,1769968241612,-25000.0,0.00017891,3]
[404212543,1769968241626,-10138.3866,0.000179,2]
[404212544,1769968241638,-25000.0,0.000179,3]
[404212545,1769968241650,-212.12976534,0.000179,2]
[404212546,1769968241663,-643.34665799,0.000179,2]
[404212547,1769968241674,-347.57801565,0.000179,2]
[404212548,1769968241686,-19056.26274756,0.000179,3]
[404212549,1769968241697,-500.0,0.00017982,2]
[404212550,1769968241710,-318.82234703,0.00017988,2]
[404212551,1769968241722,-56746.9955349,0.00017997,2]
[404212552,1769968241734,-11466.3435109,0.00017997,2]
[404212553,1769968241745,-111175.2178114,0.00017997,2]
[404212554,1769968241759,-1467.1608947,0.00017997,2]
[404212555,1769968241771,-30341.6323247,0.00017997,2]
[404212556,1769968241782,-150.0,0.00017999,2]
[404212557,1769968241795,-150.0,0.00017999,2]
[404212558,1769968241808,-150.0,0.00017999,2]
[404212559,1769968241821,-150.0,0.00017999,2]
[404212560,1769968241832,-221.79516212,0.00017999,2]
[404212561,1769968241845,-300.0,0.00017999,2]
[404212562,1769968241855,-300.0,0.00017999,2]
[404212563,1769968241865,-2090531.10706248,0.00018,2]
[404212564,1769968241885,-151.0,0.00015404,2]
[404212565,1769968241894,-835.0,0.00018,2]
[404212566,1769968241905,-1687.74092252,0.00018,2]
[404212567,1769968241917,-386.97,0.00018,2]
[404212572,1769968243202,-2219.0,0.000179,2]
[404212573,1769968244092,-57.12760062,0.000179,2]
[404212639,1769968245575,-14377.87408201,0.00015057,2]
[404212640,1769968245585,-8834.41505789,0.000179,2]
[404212641,1769968245597,-459.73996934,0.000179,2]
[404212642,1769968245607,-576.31894586,0.00018,2]
[404212643,1769968245734,-2445.0,0.00017673,2]
[404212644,1769968245744,-142515.63042606,0.00018,2]
[404212653,1769969139225,-915.326,0.00014335,2]
[404212668,1769969404130,268.0,0.00014335,2]
[404212673,1769969431570,-158.11278046,0.00014335,2]
[404212674,1769969431579,-186.338,0.00014335,2]
[404212675,1769969431588,-1267.36431557,0.00014427,2]
[404212676,1769969431620,-385.94724604,0.00014427,2]
[404212677,1769969431632,-563.5703304,0.00014427,2]
[404212678,1769969431643,-728.5480015,0.00014427,2]
[404212679,1769969431677,-523.0,0.00014427,2]
[404212680,1769969431688,-287.04410206,0.00014427,2]
[404212681,1769969431700,-542.62433888,0.00014427,2]
[404212682,1769969431711,-396.09815507,0.00014427,2]
[404212683,1769969431782,-2975.3577455,0.00014427,2]
[404212798,1769969437647,-1695.30567479,0.00014427,2]
[404212799,1769969437669,-424.06072804,0.00014427,2]
[404212800,1769969437688,-5110.9767413,0.00014427,2]
[404212801,1769969437698,-2947.65240565,0.00014427,2]
[404212802,1769969437796,-439.33492064,0.00014427,2]
[404212808,1769969439688,-420.50283876,0.00014427,2]
[404212809,1769969439699,-320.93087599,0.00014427,2]
[404212810,1769969439710,-2042.1304547,0.00014427,2]
[404212811,1769969439719,-200.0,0.00014492,2]
[404212812,1769969439728,-150.0,0.00014517,2]
[404212813,1769969439740,-1132.7754597,0.00014517,2]
[404212814,1769969439751,-67.2245403,0.00014517,2]
[404212815,1769969439760,-500.0,0.00014518,2]
[404212816,1769969439770,-51.30045959,0.00014518,2]
[404212817,1769969439782,-321.275,0.00014518,2]
[404212818,1769969439794,-51.10463295,0.00014518,2]
[404212819,1769969439803,-500.0,0.00014518,2]
[404212820,1769969439813,-351.14535474,0.00014518,2]
[404212821,1769969439822,-267.26324681,0.00014518,2]
[404212822,1769969439837,-278.57569634,0.00014518,2]
[404212823,1769969439849,-378.91931925,0.00014518,2]
[404212824,1769969439858,-500.0,0.00014518,2]
[404212825,1769969439866,-500.0,0.00014518,2]
[404212826,1769969439876,-546.67653525,0.00014518,2]
[404212827,1769969439884,-500.0,0.00014518,2]
[404212828,1769969439893,-500.0,0.00014518,2]
[404212829,1769969439903,-516.85376052,0.00014518,2]
[404212830,1769969439912,-500.0,0.00014518,2]
[404212831,1769969439920,-495.08588866,0.00014518,2]
[404212832,1769969439931,-4.91411134,0.00014518,2]
[404212833,1769969439940,-492.89889266,0.00014519,2]
[404212834,1769969439952,-2899507.10110734,0.00014519,2]
[404212835,1769969439961,-386.00799481,0.00014528,2]
[404212836,1769969439970,-239.33479598,0.00014528,2]
[404212837,1769969439979,-500.0,0.00014619,2]
[404212838,1769969439988,-151.0,0.00014619,2]
[404212839,1769969439998,-151.0,0.00014619,2]
[404212840,1769969440007,-151.0,0.00014619,2]
[404212841,1769969440017,-151.0,0.00014619,2]
[404212842,1769969440026,-151.0,0.00014619,2]
[404212843,1769969440035,-151.0,0.00014619,2]
[404212844,1769969440044,-151.0,0.00014619,2]
[404212845,1769969440053,-151.0,0.00014619,2]
[404212846,1769969440062,-151.0,0.00014619,2]
[404212847,1769969440071,-151.0,0.00014619,2]
[404212848,1769969440080,-151.0,0.00014619,2]
[404212849,1769969440090,-500.0,0.00014619,2]
[404212850,1769969440099,-500.0,0.00014619,2]
[404212851,1769969440108,-500.0,0.00014619,2]
[404212852,1769969440117,-500.0,0.00014619,2]
[404212853,1769969440126,-500.0,0.00014619,2]
[404212854,1769969440136,-500.0,0.00014619,2]
[404212855,1769969440145,-500.0,0.00014619,2]
[404212856,1769969440154,-500.0,0.00014619,2]
[404212857,1769969440163,-500.0,0.00014619,2]
[404212859,1769969440173,-500.0,0.00014619,2]
[404212861,1769969440182,-500.0,0.00014619,2]
[404212863,1769969440191,-500.0,0.00014619,2]
[404212864,1769969440200,-500.0,0.00014619,2]
[404212865,1769969440209,-500.0,0.00014619,2]
[404212866,1769969440218,-500.0,0.00014619,2]
[404212867,1769969440227,-500.0,0.00014619,2]
[404212868,1769969440237,-500.0,0.00014619,2]
[404212869,1769969440246,-500.0,0.00014619,2]
[404212870,1769969440255,-500.0,0.00014619,2]
[404212871,1769969440263,-500.0,0.00014619,2]
[404212872,1769969440272,-500.0,0.00014619,2]
[404212873,1769969440281,-500.0,0.00014619,2]
[404212874,1769969440290,-200.0,0.00014619,2]
[404212875,1769969440299,-500.0,0.00014619,2]
[404212876,1769969440308,-200.0,0.00014619,2]
[404212877,1769969440318,-500.0,0.00014627,2]
[404212878,1769969440327,-318.82234703,0.00014627,2]
[404212879,1769969440336,-1000.0,0.00014628,2]
[404212880,1769969440346,-14899.89737913,0.00014813,2]
[404212881,1769969440355,-6170.55149572,0.00014813,2]
[404212882,1769969440364,-200.0,0.00014873,2]
[404212883,1769969440373,-500.0,0.00014901,2]
[404212884,1769969440382,-1681.0,0.00014909,2]
[404212885,1769969440391,-589.09,0.00014996,2]
[404212886,1769969440400,-150.9129955,0.00015019,2]
[404212887,1769969440411,-239.33479597,0.0001509,2]
[404212888,1769969440420,-500.0,0.00015167,2]
[404212889,1769969440429,-200.0,0.00015167,2]
[404212890,1769969440438,-200.0,0.00015167,2]
[404212891,1769969440447,-500.0,0.00015175,2]
[404212892,1769969440455,-14899.89737913,0.00015199,2]
[404212893,1769969440465,-6170.55149572,0.00015199,2]
[404212894,1769969440474,-2014.64,0.000152,2]
[404212895,1769969440483,-927.34,0.00015202,2]
[404212896,1769969440492,-500.0,0.00015226,2]
[404212897,1769969440501,-915.0,0.00015325,2]
[404212898,1769969440510,-386.00799479,0.00015371,2]
[404212899,1769969440519,-500.0,0.00015449,2]
[404212900,1769969440528,-166.78,0.0001551,2]
[404212901,1769969440537,-14899.89737913,0.00015585,2]
[404212902,1769969440546,-6170.55149572,0.00015585,2]
[404212903,1769969440556,-255.0,0.00015635,2]
[404212904,1769969440565,-239.33479597,0.00015652,2]
[404212905,1769969440574,-500.0,0.00015715,2]
[404212906,1769969440583,-200.0,0.00015715,2]
[404212907,1769969440592,-200.0,0.00015715,2]
[404212908,1769969440601,-1000.0,0.00015727,2]
[404212909,1769969440610,-250.0,0.00015769,2]
[404212910,1769969440619,-2510.95,0.00015854,2]
[404212911,1769969440629,-18322.06,0.00015888,2]
[404212912,1769969440638,-215.01,0.00015904,2]
[404212913,1769969440647,-153.08,0.00015904,2]
[404212914,1769969440657,-574.42,0.00015918,2]
[404212915,1769969440666,-927.34,0.00015962,2]
[404212916,1769969440675,-1680.0,0.00015969,2]
[404212917,1769969440686,-14899.89737913,0.00015971,2]
[404212918,1769969440695,-6170.55149572,0.00015971,2]
[404212919,1769969440704,-721.12765535,0.00016123,2]
[404212920,1769969440714,-151.0,0.00016123,2]
[404212921,1769969440722,-500.0,0.00016123,2]
[404212922,1769969440732,-151.0,0.00016123,2]
[404212923,1769969440741,-209.40437684,0.00016123,2]
[404212924,1769969440750,-500.0,0.00016123,2]
[404212925,1769969440759,-151.0,0.00016123,2]
[404212926,1769969440769,-500.0,0.00016123,2]
[404212927,1769969440781,-500.0,0.00016123,2]
[404212928,1769969440790,-151.0,0.00016123,2]
[404212929,1769969440799,-500.0,0.00016123,2]
[404212930,1769969440809,-500.0,0.00016123,2]
[404212931,1769969440818,-151.0,0.00016123,2]
[404212932,1769969440827,-500.0,0.00016123,2]
[404212933,1769969440836,-500.0,0.00016123,2]
[404212934,1769969440846,-151.0,0.00016123,2]
[404212935,1769969440855,-500.0,0.00016123,2]
[404212936,1769969440864,-500.0,0.00016123,2]
[404212937,1769969440873,-151.0,0.00016123,2]
[404212938,1769969440882,-500.0,0.00016123,2]
[404212939,1769969440892,-500.0,0.00016123,2]
[404212940,1769969440901,-151.0,0.00016123,2]
[404212941,1769969440912,-500.0,0.00016123,2]
[404212942,1769969440922,-500.0,0.00016123,2]
[404212943,1769969440931,-151.0,0.00016123,2]
[404212944,1769969440940,-250.0,0.00016123,2]
[404212945,1769969440949,-500.0,0.00016123,2]
[404212946,1769969440959,-151.0,0.00016123,2]
[404212947,1769969440968,-250.0,0.00016123,2]
[404212948,1769969440978,-500.0,0.00016123,2]
[404212949,1769969440987,-500.0,0.00016123,2]
[404212950,1769969440996,-151.0,0.00016123,2]
[404212951,1769969441005,-250.0,0.00016123,2]
[404212952,1769969441015,-500.0,0.00016123,2]
[404212953,1769969441023,-500.0,0.00016123,2]
[404212954,1769969441032,-250.0,0.00016123,2]
[404212955,1769969441041,-151.0,0.00016123,2]
[404212956,1769969441050,-500.0,0.00016123,2]
[404212957,1769969441059,-500.0,0.00016123,2]
[404212958,1769969441068,-250.0,0.00016123,2]
[404212959,1769969441077,-500.0,0.00016123,2]